fUST/lending_fUST_20240226
["ID","MTS","AMOUNT","RATE_DAILY","PERIOD"]
[315180377,1708907440056,-500.0,0.00019178,2]
[315180378,1708907440065,-2720.8,0.00019178,2]
[315180379,1708907440074,-500.0,0.00019178,2]
[315180380,1708907440083,-500.0,0.00019178,2]
[315180381,1708907440093,-500.0,0.00019178,2]
[315180383,1708907440102,-500.0,0.00019178,2]
[315180384,1708907440111,-500.0,0.00019178,2]
[315180385,1708907440120,-1952.44,0.00019178,2]
[315180386,1708907440129,-500.0,0.00019178,2]
[315180387,1708907440137,-500.0,0.00019178,2]
[315180388,1708907440146,-1998.21,0.00019178,2]
[315180389,1708907440155,-500.0,0.00019178,2]
[315180391,1708907440166,-500.0,0.00019178,2]
[315180393,1708907440175,-500.0,0.00019178,2]
[315180395,1708907440183,-1000.0,0.00019178,2]
[315180397,1708907440193,-500.0,0.00019178,2]
[315180399,1708907440201,-500.0,0.00019178,2]
[315180400,1708907440211,-500.0,0.00019178,2]
[315180401,1708907440220,-500.0,0.00019178,2]
[315180402,1708907440229,-500.0,0.00019178,2]
[315180403,1708907440238,-500.0,0.00019178,2]
[315180404,1708907440247,-500.0,0.00019178,2]
[315180405,1708907440256,-21612.41,0.00019178,2]
[315180406,1708907440265,-500.0,0.00019178,2]
[315180407,1708907440274,-500.81653216,0.00019178,2]
[315180408,1708907440283,-500.17639548,0.00019178,2]
[315180409,1708907440291,-500.0,0.00019178,2]
[315180411,1708907440300,-500.0,0.00019178,2]
[315180412,1708907440309,-268.39371739,0.00019178,2]
[315180413,1708907440318,-500.0,0.00019178,2]
[315180414,1708907440328,-500.0,0.00019178,2]
[315180415,1708907440337,-500.9168553,0.00019178,2]
[315180416,1708907440345,-178.52864785,0.00019178,2]
[315180417,1708907440355,-572.52818426,0.00019178,2]
[315180418,1708907440364,-500.0,0.00019178,2]
[315180419,1708907440373,-1258.13,0.00019178,2]
[315180420,1708907440383,-500.0,0.00019178,2]
[315180421,1708907440392,-500.0,0.00019178,2]
[315180422,1708907440401,-500.0,0.00019178,2]
[315180423,1708907440410,-500.0,0.00019178,2]
[315180424,1708907440419,-2050.66,0.00019178,2]
[315180425,1708907440428,-500.0,0.00019178,2]
[315180426,1708907440437,-500.0,0.00019178,2]
[315180427,1708907440446,-500.0,0.00019178,2]
[315180428,1708907440455,-500.0,0.00019178,2]
[315180429,1708907440464,-1694.83,0.00019178,2]
[315180430,1708907440473,-500.0,0.00019178,2]
[315180431,1708907440482,-500.0,0.00019178,2]
[315180432,1708907440492,-500.0,0.00019178,2]
[315180433,1708907440503,-500.0,0.00019178,2]
[315180434,1708907440512,-500.0,0.00019178,2]
[315180435,1708907440521,-586.26,0.00019178,2]
[315180436,1708907440531,-500.0,0.00019178,2]
[315180438,1708907440541,-7878.2,0.00019178,2]
[315180440,1708907440550,-513.35654408,0.00019178,2]
[315180441,1708907440559,-500.0,0.00019178,2]
[315180443,1708907440569,-740.74,0.00019178,2]
[315180445,1708907440578,-10943.36,0.00019178,2]
[315180446,1708907440587,-500.0,0.00019178,2]
[315180448,1708907440596,-500.0,0.00019178,2]
[315180449,1708907440605,-500.0,0.00019178,2]
[315180450,1708907440614,-500.0,0.00019178,2]
[315180451,1708907440624,-500.0,0.00019178,2]
[315180452,1708907440633,-562.32781507,0.00019178,2]
[315180453,1708907440642,-500.0,0.00019178,2]
[315180454,1708907440651,-518.14198464,0.00019178,2]
[315180455,1708907440660,-2316.2,0.00019178,2]
[315180456,1708907440669,-625.63013097,0.00019178,2]
[315180457,1708907440679,-500.0,0.00019178,2]
[315180458,1708907440688,-500.0,0.00019178,2]
[315180459,1708907440698,-500.0,0.00019178,2]
[315180460,1708907440706,-2996.35,0.00019178,2]
[315180461,1708907440715,-500.0,0.00019178,2]
[315180462,1708907440725,-500.0,0.00019178,2]
[315180463,1708907440734,-500.0,0.00019178,2]
[315180464,1708907440743,-500.0,0.00019178,2]
[315180465,1708907440752,-500.0,0.00019178,2]
[315180466,1708907440761,-500.0,0.00019178,2]
[315180467,1708907440770,-500.0,0.00019178,2]
[315180468,1708907440779,-500.0,0.00019178,2]
[315180469,1708907440789,-500.0,0.00019178,2]
[315180470,1708907440798,-21669.8,0.00019178,2]
[315180471,1708907440807,-500.0,0.00019178,2]
[315180472,1708907440816,-500.0,0.00019178,2]
[315180473,1708907440825,-4352.95,0.00019178,2]
[315180474,1708907440834,-500.0,0.00019178,2]
[315180475,1708907440843,-500.0,0.00019178,2]
[315180476,1708907440852,-500.0,0.00019178,2]
[315180477,1708907440862,-2871.11,0.00019178,2]
[315180478,1708907440871,-500.0,0.00019178,2]
[315180479,1708907440881,-1194.81,0.00019178,2]
[315180480,1708907440890,-500.0,0.00019178,2]
[315180481,1708907440899,-500.0,0.00019178,2]
[315180482,1708907440908,-500.52544546,0.00019178,2]
[315180483,1708907440917,-500.0,0.00019178,2]
[315180484,1708907440926,-451.64073041,0.00019178,2]
[315180485,1708907440936,-500.0,0.00019178,2]
[315180486,1708907440945,-500.0,0.00019178,2]
[315180487,1708907440955,-500.0,0.00019178,2]
[315180488,1708907440964,-500.0,0.00019178,2]
[315180489,1708907440975,-500.0,0.00019178,2]
[315180490,1708907440985,-500.0,0.00019178,2]
[315180491,1708907440994,-719.24,0.00019178,2]
[315180492,1708907441004,-500.0,0.00019178,2]
[315180493,1708907441014,-500.0,0.00019178,2]
[315180494,1708907441023,-2358.42,0.00019178,2]
[315180495,1708907441033,-500.0,0.00019178,2]
[315180496,1708907441042,-500.0,0.00019178,2]
[315180497,1708907441052,-500.0,0.00019178,2]
[315180498,1708907441061,-500.0,0.00019178,2]
[315180499,1708907441071,-500.0,0.00019178,2]
[315180500,1708907441080,-3160.82,0.00019178,2]
[315180501,1708907441090,-500.0,0.00019178,2]
[315180502,1708907441100,-500.0,0.00019178,2]
[315180503,1708907441201,-500.0,0.00019178,2]
[315180504,1708907441211,-500.0,0.00019178,2]
[315180505,1708907441219,-400.0,0.00019178,2]
[315180506,1708907441229,-163.09372,0.00019178,2]
[315180507,1708907441238,-166.358031,0.00019178,2]
[315180508,1708907441247,-166.666666,0.00019178,2]
[315180509,1708907441256,-993.70615882,0.00019358,2]
[315180510,1708907441266,-174.0,0.000194,2]
[315180511,1708907441275,-243.58118859,0.00019451,2]
[315180512,1708907441285,-243.58118859,0.00019451,2]
[315180513,1708907441294,-500.0,0.00019451,2]
[315180514,1708907441303,-500.0,0.00019451,2]
[315180515,1708907441312,-500.0,0.00019451,2]
[315180516,1708907441321,-500.0,0.00019451,2]
[315180517,1708907441331,-500.0,0.00019451,2]
[315180518,1708907441340,-198.58317025,0.00019451,2]
[315180519,1708907441349,-500.0,0.00019452,2]
[315180520,1708907441359,-1668.28,0.00019452,2]
[315180521,1708907441368,-500.0,0.00019452,2]
[315180522,1708907441377,-500.0,0.00019452,2]
[315180523,1708907441386,-500.0,0.00019452,2]
[315180524,1708907441395,-500.0,0.00019452,2]
[315180525,1708907441405,-500.0,0.00019452,2]
[315180526,1708907441414,-500.0,0.00019452,2]
[315180527,1708907441423,-389.05948452,0.00019452,2]
[315180528,1708907441431,-501.22711499,0.00019452,2]
[315180529,1708907441441,-500.0,0.00019452,2]
[315180530,1708907441449,-500.0,0.00019452,2]
[315180531,1708907441458,-515.7261257,0.00019452,2]
[315180532,1708907441467,-500.0,0.00019452,2]
[315180533,1708907441476,-500.0,0.00019452,2]
[315180534,1708907441484,-500.0,0.00019452,2]
[315180535,1708907441494,-500.0,0.00019452,2]
[315180536,1708907441506,-500.0,0.00019452,2]
[315180537,1708907441515,-541.94821274,0.00019452,2]
[315180538,1708907441525,-640.34440866,0.00019452,2]
[315180539,1708907441534,-500.0,0.00019452,2]
[315180540,1708907441545,-500.0,0.00019452,2]
[315180541,1708907441554,-500.0,0.00019452,2]
[315180542,1708907441562,-583.87,0.00019452,2]
[315180543,1708907441572,-500.0,0.00019452,2]
[315180544,1708907441583,-500.0,0.00019452,2]
[315180545,1708907441593,-500.0,0.00019452,2]
[315180546,1708907441604,-500.0,0.00019452,2]
[315180547,1708907441613,-596.29,0.00019452,2]
[315180548,1708907441621,-500.0,0.00019452,2]
[315180549,1708907441630,-500.0,0.00019452,2]
[315180550,1708907441639,-500.0,0.00019452,2]
[315180551,1708907441649,-500.0,0.00019452,2]
[315180552,1708907441658,-500.0,0.00019452,2]
[315180553,1708907441667,-500.0,0.00019452,2]
[315180554,1708907441676,-500.0,0.00019452,2]
[315180555,1708907441686,-500.0,0.00019452,2]
[315180556,1708907441695,-500.0,0.00019452,2]
[315180557,1708907441704,-500.0,0.00019452,2]
[315180558,1708907441713,-500.0,0.00019452,2]
[315180559,1708907441722,-500.0,0.00019452,2]
[315180560,1708907441732,-500.0,0.00019452,2]
[315180561,1708907441741,-1384.56,0.00019452,2]
[315180562,1708907441750,-500.0,0.00019452,2]
[315180563,1708907441759,-500.0,0.00019452,2]
[315180564,1708907441768,-500.0,0.00019452,2]
[315180565,1708907441777,-500.53936311,0.00019452,2]
[315180566,1708907441787,-1392.62,0.00019452,2]
[315180567,1708907441796,-500.0,0.00019452,2]
[315180568,1708907441805,-500.0,0.00019452,2]
[315180569,1708907441815,-500.0,0.00019452,2]
[315180570,1708907441824,-500.0,0.00019452,2]
[315180571,1708907441834,-500.0,0.00019452,2]
[315180572,1708907441843,-151.0,0.00019452,2]
[315180573,1708907441852,-500.0,0.00019452,2]
[315180574,1708907441862,-500.0,0.00019452,2]
[315180575,1708907441871,-500.0,0.00019452,2]
[315180576,1708907441881,-500.0,0.00019452,2]
[315180577,1708907441890,-500.0,0.00019452,2]
[315180578,1708907441899,-500.0,0.00019452,2]
[315180579,1708907441909,-592.56,0.00019452,2]
[315180580,1708907441918,-290.34416651,0.00019452,2]
[315180581,1708907441927,-1360.55,0.00019452,2]
[315180582,1708907441936,-503.59319425,0.00019452,2]
[315180583,1708907441946,-705.39,0.00019452,2]
[315180584,1708907441955,-500.0,0.00019452,2]
[315180585,1708907441965,-499.60684837,0.00019452,2]
[315180586,1708907441974,-500.0,0.00019452,2]
[315180587,1708907441984,-500.0,0.00019452,2]
[315180588,1708907441993,-500.0,0.00019452,2]
[315180589,1708907442003,-530.97986716,0.00019452,2]
[315180590,1708907442012,-500.0,0.00019452,2]
[315180591,1708907442020,-500.0,0.00019452,2]
[315180592,1708907442029,-500.0,0.00019452,2]
[315180593,1708907442038,-500.0,0.00019452,2]
[315180594,1708907442046,-1004.11866743,0.00019452,2]
[315180595,1708907442056,-500.0,0.00019452,2]
[315180596,1708907442065,-500.0,0.00019452,2]
[315180597,1708907442073,-500.0,0.00019452,2]
[315180598,1708907442082,-500.0,0.00019452,2]
[315180599,1708907442091,-2055.89,0.00019452,2]
[315180600,1708907442101,-500.62885476,0.00019452,2]
[315180601,1708907442109,-500.0,0.00019452,2]
[315180602,1708907442118,-500.0,0.00019452,2]
[315180603,1708907442126,-500.0,0.00019452,2]
[315180604,1708907442135,-1598.9,0.00019452,2]
[315180605,1708907442144,-500.0,0.00019452,2]
[315180606,1708907442152,-500.0,0.00019452,2]
[315180607,1708907442161,-500.0,0.00019452,2]
[315180608,1708907442170,-500.0,0.00019452,2]
[315180609,1708907442179,-500.0,0.00019452,2]
[315180610,1708907442187,-510.22306871,0.00019452,2]
[315180611,1708907442196,-500.0,0.00019452,2]
[315180612,1708907442205,-200.85899161,0.00019452,2]
[315180613,1708907442214,-592.55105003,0.00019452,2]
[315180614,1708907442223,-500.0,0.00019452,2]
[315180615,1708907442231,-500.0,0.00019452,2]
[315180616,1708907442240,-500.0,0.00019452,2]
[315180617,1708907442249,-501.27644702,0.00019452,2]
[315180618,1708907442257,-500.0,0.00019452,2]
[315180619,1708907442267,-500.0,0.00019452,2]
[315180620,1708907442277,-500.0,0.00019452,2]
[315180621,1708907442286,-500.0,0.00019452,2]
[315180622,1708907442295,-500.0,0.00019452,2]
[315180623,1708907442304,-500.0,0.00019452,2]
[315180624,1708907442313,-500.0,0.00019452,2]
[315180625,1708907442323,-500.0,0.00019452,2]
[315180626,1708907442332,-500.0,0.00019452,2]
[315180627,1708907442342,-500.0,0.00019452,2]
[315180628,1708907442352,-941.68,0.00019452,2]
[315180629,1708907442361,-500.0,0.00019452,2]
[315180630,1708907442371,-500.0,0.00019452,2]
[315180631,1708907442380,-500.0,0.00019452,2]
[315180632,1708907442389,-500.0,0.00019452,2]
[315180633,1708907442398,-500.0,0.00019452,2]
[315180634,1708907442407,-789.38,0.00019452,2]
[315180635,1708907442417,-500.0,0.00019452,2]
[315180636,1708907442427,-500.0,0.00019452,2]
[315180637,1708907442436,-500.0,0.00019452,2]
[315180638,1708907442445,-500.0,0.00019452,2]
[315180639,1708907442454,-500.0,0.00019452,2]
[315180640,1708907442464,-500.0,0.00019452,2]
[315180641,1708907442473,-500.0,0.00019452,2]
[315180642,1708907442482,-544.51786006,0.00019452,2]
[315180644,1708907442492,-500.0,0.00019452,2]
[315180646,1708907442502,-500.0,0.00019452,2]
[315180647,1708907442513,-500.0,0.00019452,2]
[315180649,1708907442523,-1549.0,0.00019452,2]
[315180651,1708907442532,-500.0,0.00019452,2]
[315180653,1708907442541,-500.0,0.00019452,2]
[315180655,1708907442549,-500.0,0.00019452,2]
[315180657,1708907442558,-741.61,0.00019452,2]
[315180659,1708907442567,-500.0,0.00019452,2]
[315180660,1708907442576,-853.98,0.00019452,2]
[315180661,1708907442586,-11029.63,0.00019452,2]
[315180662,1708907442595,-500.0,0.00019452,2]
[315180663,1708907442605,-500.0,0.00019452,2]
[315180664,1708907442614,-500.0,0.00019452,2]
[315180665,1708907442624,-500.0,0.00019452,2]
[315180666,1708907442633,-500.0,0.00019452,2]
[315180667,1708907442641,-1828.87,0.00019452,2]
[315180668,1708907442651,-500.0,0.00019452,2]
[315180669,1708907442660,-4017.45,0.00019452,2]
[315180671,1708907442669,-500.0,0.00019452,2]
[315180672,1708907442678,-2575.8,0.00019452,2]
[315180673,1708907442687,-500.0,0.00019452,2]
[315180674,1708907442696,-248.03889364,0.00019452,2]
[315180675,1708907442705,-500.0,0.00019452,2]
[315180676,1708907442714,-500.0,0.00019452,2]
[315180677,1708907442723,-500.0,0.00019452,2]
[315180678,1708907442732,-500.0,0.00019452,2]
[315180679,1708907442741,-485.95883318,0.00019452,2]
[315180680,1708907442750,-500.0,0.00019452,2]
[315180681,1708907442759,-500.0,0.00019452,2]
[315180683,1708907442768,-500.0,0.00019452,2]
[315180684,1708907442777,-2720.8,0.00019452,2]
[315180686,1708907442787,-500.0,0.00019452,2]
[315180687,1708907442796,-500.0,0.00019452,2]
[315180688,1708907442804,-500.0,0.00019452,2]
[315180689,1708907442813,-500.0,0.00019452,2]
[315180690,1708907442822,-1952.44,0.00019452,2]
[315180692,1708907442832,-500.0,0.00019452,2]
[315180694,1708907442842,-500.0,0.00019452,2]
[315180696,1708907442851,-1998.21,0.00019452,2]
[315180697,1708907442861,-500.0,0.00019452,2]
[315180698,1708907442871,-580.33377314,0.00019452,2]
[315180699,1708907442880,-1000.0,0.00019452,2]
[315180701,1708907442889,-500.0,0.00019452,2]
[315180702,1708907442898,-500.0,0.00019452,2]
[315180703,1708907442907,-500.0,0.00019452,2]
[315180704,1708907442916,-500.0,0.00019452,2]
[315180705,1708907442925,-500.0,0.00019452,2]
[315180706,1708907442934,-500.0,0.00019452,2]
[315180707,1708907442944,-21612.41,0.00019452,2]
[315180708,1708907442954,-500.0,0.00019452,2]
[315180709,1708907442964,-500.0,0.00019452,2]
[315180710,1708907442973,-500.0,0.00019452,2]
[315180711,1708907442983,-501.43563149,0.00019452,2]
[315180712,1708907442992,-500.0,0.00019452,2]
[315180713,1708907443001,-1258.13,0.00019452,2]
[315180714,1708907443010,-500.0,0.00019452,2]
[315180715,1708907443020,-500.0,0.00019452,2]
[315180716,1708907443029,-500.0,0.00019452,2]
[315180717,1708907443038,-500.0,0.00019452,2]
[315180718,1708907443048,-2050.66,0.00019452,2]
[315180719,1708907443057,-500.0,0.00019452,2]
[315180720,1708907443067,-500.0,0.00019452,2]
[315180721,1708907443077,-500.0,0.00019452,2]
[315180722,1708907443086,-500.49581509,0.00019452,2]
[315180723,1708907443095,-1694.83,0.00019452,2]
[315180724,1708907443106,-500.0,0.00019452,2]
[315180726,1708907443115,-500.0,0.00019452,2]
[315180728,1708907443124,-500.0,0.00019452,2]
[315180730,1708907443132,-504.30900144,0.00019452,2]
[315180732,1708907443141,-502.19470919,0.00019452,2]
[315180734,1708907443150,-586.26,0.00019452,2]
[315180736,1708907443159,-500.0,0.00019452,2]
[315180738,1708907443168,-7878.2,0.00019452,2]
[315180740,1708907443177,-500.0,0.00019452,2]
[315180741,1708907443187,-740.74,0.00019452,2]
[315180743,1708907443197,-10943.36,0.00019452,2]
[315180745,1708907443206,-500.0,0.00019452,2]
[315180747,1708907443215,-500.0,0.00019452,2]
[315180749,1708907443224,-500.0,0.00019452,2]
[315180751,1708907443233,-500.0,0.00019452,2]
[315180753,1708907443242,-500.0,0.00019452,2]
[315180755,1708907443251,-2316.2,0.00019452,2]
[315180757,1708907443261,-500.0,0.00019452,2]
[315180760,1708907443270,-500.0,0.00019452,2]
[315180762,1708907443279,-500.0,0.00019452,2]
[315180764,1708907443288,-2996.35,0.00019452,2]
[315180766,1708907443298,-500.0,0.00019452,2]
[315180768,1708907443307,-500.17034226,0.00019452,2]
[315180770,1708907443316,-500.0,0.00019452,2]
[315180773,1708907443325,-500.0,0.00019452,2]
[315180776,1708907443334,-21669.8,0.00019452,2]
[315180778,1708907443343,-4352.95,0.00019452,2]
[315180780,1708907443353,-500.0,0.00019452,2]
[315180782,1708907443361,-500.0,0.00019452,2]
[315180784,1708907443370,-2871.11,0.00019452,2]
[315180786,1708907443379,-500.0,0.00019452,2]
[315180788,1708907443388,-1194.81,0.00019452,2]
[315180790,1708907443398,-500.0,0.00019452,2]
[315180792,1708907443406,-500.0,0.00019452,2]
[315180794,1708907443415,-500.0,0.00019452,2]
[315180796,1708907443424,-500.0,0.00019452,2]
[315180797,1708907443433,-500.0,0.00019452,2]
[315180799,1708907443442,-500.0,0.00019452,2]
[315180801,1708907443451,-500.0,0.00019452,2]
[315180802,1708907443460,-500.0,0.00019452,2]
[315180803,1708907443546,-719.24,0.00019452,2]
[315180804,1708907443568,-500.0,0.00019452,2]
[315180805,1708907443579,-500.0,0.00019452,2]
[315180806,1708907443588,-2358.42,0.00019452,2]
[315180807,1708907443597,-500.0,0.00019452,2]
[315180808,1708907443606,-500.0,0.00019452,2]
[315180809,1708907443616,-500.0,0.00019452,2]
[315180810,1708907443625,-500.0,0.00019452,2]
[315180811,1708907443634,-640.14797302,0.00019452,2]
[315180812,1708907443643,-3160.82,0.00019452,2]
[315180813,1708907443652,-500.0,0.00019452,2]
[315180814,1708907443661,-500.0,0.00019452,2]
[315180815,1708907443671,-500.0,0.00019452,2]
[315180816,1708907443680,-4173.32151869,0.00019468,2]
[315180817,1708907443688,-182.51135653,0.0001947,2]
[315180818,1708907443697,-3148.29518075,0.00019475,2]
[315180819,1708907443705,-3148.29518075,0.00019488,2]
[315180820,1708907443713,-182.51135653,0.00019489,2]
[315180821,1708907443722,-182.51135653,0.00019496,2]
[315180822,1708907443731,-3148.29518075,0.00019499,2]
[315180823,1708907443742,-4173.32151869,0.00019499,2]
[315180824,1708907443751,-4173.32151869,0.000195,2]
[315180825,1708907443760,-243.58118859,0.00019595,2]
[315180826,1708907443770,-5506.85853467,0.000196,2]
[315180827,1708907443779,-166.666666,0.00019627,2]
[315180828,1708907443788,-2375.02969774,0.000197,2]
[315180829,1708907443797,-2375.02969774,0.000197,2]
[315180830,1708907443807,-2375.02969774,0.000197,2]
[315180831,1708907443816,-3148.29518074,0.000197,2]
[315180832,1708907443825,-3148.29518074,0.000197,2]
[315180833,1708907443834,-3148.29518074,0.000197,2]
[315180834,1708907443845,-243.58118859,0.00019725,2]
[315180835,1708907443855,-500.0,0.00019725,2]
[315180836,1708907443864,-500.0,0.00019725,2]
[315180837,1708907443873,-500.0,0.00019725,2]
[315180838,1708907443882,-500.0,0.00019725,2]
[315180839,1708907443891,-500.0,0.00019725,2]
[315180840,1708907443900,-500.0,0.00019725,2]
[315180841,1708907443909,-500.0,0.00019726,2]
[315180842,1708907443918,-1668.28,0.00019726,2]
[315180843,1708907443928,-500.0,0.00019726,2]
[315180844,1708907443937,-500.0,0.00019726,2]
[315180845,1708907443946,-439.43556303,0.00019726,2]
[315180846,1708907443956,-500.76231517,0.00019726,2]
[315180847,1708907443965,-501.38504518,0.00019726,2]
[315180848,1708907443974,-500.0,0.00019726,2]
[315180849,1708907443983,-500.0,0.00019726,2]
[315180850,1708907443993,-500.0,0.00019726,2]
[315180851,1708907444002,-500.0,0.00019726,2]
[315180852,1708907444011,-583.87,0.00019726,2]
[315180853,1708907444021,-500.0,0.00019726,2]
[315180854,1708907444030,-500.0,0.00019726,2]
[315180855,1708907444040,-596.29,0.00019726,2]
[315180856,1708907444049,-500.0,0.00019726,2]
[315180857,1708907444058,-500.0,0.00019726,2]
[315180858,1708907444067,-500.0,0.00019726,2]
[315180859,1708907444077,-500.0,0.00019726,2]
[315180860,1708907444086,-500.92520509,0.00019726,2]
[315180861,1708907444095,-500.0,0.00019726,2]
[315180862,1708907444105,-500.0,0.00019726,2]
[315180863,1708907444114,-500.0,0.00019726,2]
[315180864,1708907444123,-502.05058495,0.00019726,2]
[315180865,1708907444131,-1384.56,0.00019726,2]
[315180866,1708907444140,-1392.62,0.00019726,2]
[315180867,1708907444149,-603.47952692,0.00019726,2]
[315180868,1708907444158,-500.0,0.00019726,2]
[315180869,1708907444168,-500.0,0.00019726,2]
[315180870,1708907444177,-375.96413218,0.00019726,2]
[315180871,1708907444186,-151.0,0.00019726,2]
[315180872,1708907444195,-500.0,0.00019726,2]
[315180873,1708907444204,-500.0,0.00019726,2]
[315180874,1708907444213,-500.0,0.00019726,2]
[315180875,1708907444222,-592.56,0.00019726,2]
[315180876,1708907444230,-1360.55,0.00019726,2]
[315180877,1708907444239,-705.39,0.00019726,2]
[315180878,1708907444248,-500.0,0.00019726,2]
[315180879,1708907444257,-500.0,0.00019726,2]
[315180880,1708907444266,-500.0,0.00019726,2]
[315180881,1708907444275,-500.0,0.00019726,2]
[315180882,1708907444284,-500.0,0.00019726,2]
[315180883,1708907444293,-500.0,0.00019726,2]
[315180884,1708907444302,-500.0,0.00019726,2]
[315180885,1708907444311,-500.0,0.00019726,2]
[315180886,1708907444325,-500.0,0.00019726,2]
[315180887,1708907444343,-500.0,0.00019726,2]
[315180888,1708907444352,-500.0,0.00019726,2]
[315180889,1708907444361,-500.0,0.00019726,2]
[315180890,1708907444370,-2055.89,0.00019726,2]
[315180891,1708907444379,-500.0,0.00019726,2]
[315180892,1708907444389,-614.95785219,0.00019726,2]
[315180893,1708907444397,-500.0,0.00019726,2]
[315180894,1708907444405,-1598.9,0.00019726,2]
[315180895,1708907444414,-500.0,0.00019726,2]
[315180896,1708907444423,-500.0,0.00019726,2]
[315180897,1708907444432,-500.0,0.00019726,2]
[315180898,1708907444442,-500.0,0.00019726,2]
[315180899,1708907444451,-500.0,0.00019726,2]
[315180900,1708907444459,-500.0,0.00019726,2]
[315180901,1708907444468,-500.0,0.00019726,2]
[315180902,1708907444477,-500.89136528,0.00019726,2]
[315180903,1708907444487,-463.14028238,0.00019726,2]
[315180904,1708907444496,-476.97605386,0.00019726,2]
[315180905,1708907444508,-500.0,0.00019726,2]
[315180906,1708907444517,-500.0,0.00019726,2]
[315180907,1708907444526,-500.0,0.00019726,2]
[315180908,1708907444535,-500.0,0.00019726,2]
[315180909,1708907444545,-500.0,0.00019726,2]
[315180910,1708907444554,-500.0,0.00019726,2]
[315180911,1708907444563,-239.06124115,0.00019726,2]
[315180912,1708907444572,-500.0,0.00019726,2]
[315180913,1708907444582,-500.0,0.00019726,2]
[315180914,1708907444591,-941.68,0.00019726,2]
[315180915,1708907444601,-500.0,0.00019726,2]
[315180916,1708907444611,-500.0,0.00019726,2]
[315180917,1708907444619,-500.0,0.00019726,2]
[315180918,1708907444628,-500.0,0.00019726,2]
[315180919,1708907444637,-500.0,0.00019726,2]
[315180920,1708907444646,-789.38,0.00019726,2]
[315180921,1708907444655,-501.02885716,0.00019726,2]
[315180922,1708907444664,-500.0,0.00019726,2]
[315180923,1708907444673,-500.0,0.00019726,2]
[315180924,1708907444683,-500.0,0.00019726,2]
[315180925,1708907444693,-255.63018789,0.00019726,2]
[315180926,1708907444702,-500.0,0.00019726,2]
[315180927,1708907444711,-500.0,0.00019726,2]
[315180928,1708907444721,-500.0,0.00019726,2]
[315180929,1708907444730,-1549.0,0.00019726,2]
[315180930,1708907444739,-500.0,0.00019726,2]
[315180931,1708907444748,-500.0,0.00019726,2]
[315180932,1708907444757,-500.0,0.00019726,2]
[315180933,1708907444766,-741.61,0.00019726,2]
[315180934,1708907444776,-500.0,0.00019726,2]
[315180935,1708907444785,-853.98,0.00019726,2]
[315180936,1708907444795,-11029.63,0.00019726,2]
[315180937,1708907444804,-500.0,0.00019726,2]
[315180938,1708907444814,-628.2899227,0.00019726,2]
[315180939,1708907444823,-500.0,0.00019726,2]
[315180940,1708907444832,-500.0,0.00019726,2]
[315180941,1708907444842,-1828.87,0.00019726,2]
[315180942,1708907444851,-500.0,0.00019726,2]